Cogmind - Beta 14 @@@ ROGUE MODE // 2024.11.19 @ 00:26:08 Player: Fangrelle Result: Self-destructed Performance ------------- Evolutions (3) 1500 Regions Visited (6) 1200 Robots Destroyed (77) 385 Value Destroyed (2251) 2251 Prototype IDs (32) 640 Alien Tech Used (0) 0 Bonus (476) 476 TOTAL SCORE: 6452 Bonus ------- High Alert Combat Kills 104 Follower Combat Kills 85 Aligned with FarCom 300 Friendly Fire -13 Cogmind --------- Core Integrity 95/700 Matter 78/300 Energy 76/100 System Corruption 1% Temperature Cool (0) Movement Rolling (100) Location -7/Factory Parts ------- > --- POWER (1) -------- (None) > --- PROPULSION (2) --- Armored Huge Wheel > --- UTILITY (8) ------ Advanced Targeting Computer Advanced Targeting Computer Advanced Targeting Computer Armor Integrity Analyzer > --- WEAPON (2) ------- (None) > --- INVENTORY (5) ---- Armored Huge Wheel Armored Huge Wheel Huge Storage Unit Peak State ------------ > --- POWER ------------ Improved Deuterium Engine > --- PROPULSION ------- Armored Huge Wheel > --- UTILITY ---------- Humpback Advanced Targeting Computer Advanced Targeting Computer Advanced Targeting Computer Armor Integrity Analyzer Hardened Medium Armor Plating Improved Shield Generator > --- WEAPON ----------- Improved Assault Rifle Mini Assault Cannon > --- INVENTORY -------- Armored Treads Armored Treads Armored Huge Wheel Armored Huge Wheel Armored Huge Wheel Armored Huge Wheel Cooling System Huge Storage Unit Humpback Improved Signal Interpreter Advanced Targeting Computer Advanced Targeting Computer Advanced Targeting Computer Advanced Targeting Computer Advanced Targeting Computer Improved Melee Analysis Suite Microactuators Improved Light Armor Plating Hardlight Generator Hacking Suite Hacking Suite Component Analysis Suite System Restoration Module Improved Assault Rifle Heavy Battle Rifle Flak Cannon Advanced EMP Blaster Improved Datajack Mining Laser Katana [Rating: 53] Favorites ----------- Power Light Ion Engine Engine Light Ion Engine Propulsion Light Treads Treads Light Treads Leg Aluminum Leg Wheel Armored Huge Wheel Hover Unit Airjet Flight Unit Improved VTOL Module Utility Humpback Device Improved Cooling System Storage Humpback Processor Advanced Targeting Computer Protection Improved Light Armor Plating Weapon Medium Laser Energy Gun Medium Laser Energy Cannon Light EM Pulse Cannon Ballistic Gun Improved Assault Rifle Ballistic Cannon Assault Cannon Launcher Grenade Launcher Special Weapon Mining Laser Slashing Weapon Katana Build | -11 -10 -10 -10 -9 -8 -7 ------- Run | Yrd Mat Min Exi Min Mat Fac Slots Evolved 6 | . . . . . 4 2 Power . | . . . . . . . Propulsion . | . . . . . . . Utility 6 | . . . . . 4 2 Weapon . | . . . . . . . Parts Attached 112 | . 2 3 1 4 81 21 Power 5 | . . . . . 4 1 Engine 5 | . . . . . 4 1 Core . | . . . . . . . Reactor . | . . . . . . . Propulsion 20 | . 2 . . . 16 2 Treads 11 | . 2 . . . 9 . Leg . | . . . . . . . Wheel 6 | . . . . . 4 2 Hover 2 | . . . . . 2 . Flight 1 | . . . . . 1 . Utility 45 | . . 2 1 . 34 8 Device 13 | . . . . . 11 2 Storage 6 | . . . 1 . 4 1 Processor 8 | . . 1 . . 5 2 Hackware . | . . . . . . . Protection 18 | . . 1 . . 14 3 Artifact . | . . . . . . . Weapon 42 | . . 1 . 4 27 10 Energy Gun 4 | . . . . 2 2 . Energy Cannon 2 | . . . . . 1 1 Ballistic Gun 17 | . . 1 . 2 9 5 Ballistic Cannon 9 | . . . . . 7 2 Launcher 2 | . . . . . 2 . Special Weapon 1 | . . . . . 1 . Impact Weapon . | . . . . . . . Slashing Weapon 7 | . . . . . 5 2 Piercing Weapon . | . . . . . . . Special Melee Weapon . | . . . . . . . Unidentified Prototypes 9 | . . . . . 8 1 Parts Lost 34 | . . . . . 12 22 Power 1 | . . . . . . 1 Propulsion 6 | . . . . . 3 3 Utility 17 | . . . . . 6 11 Weapon 10 | . . . . . 3 7 Highest Loss Streak 21 | . . . . . 4 21 To Critical Strikes . | . . . . . . . Average Slot Usage (%) 78 | . 85 93 58 75 82 82 Engine 11 | . 14 14 14 14 9 6 Treads 19 | . 28 28 28 28 13 . Wheel 1 | . . . . . 2 6 Device 4 | . . . . . 8 4 Storage 11 | . 14 14 13 14 9 7 Processor 7 | . . 4 . . 11 30 Protection 6 | . . 3 1 . 11 8 Energy Gun 6 | . 14 1 . 18 1 . Ballistic Gun 5 | . 14 26 . . 6 11 Ballistic Cannon 3 | . . . . . 7 1 Slashing Weapon 1 | . . . . . 1 1 Peak Build Rating 53 | . 6 11 11 15 46 53 Average Rating 26 | . 5 9 7 12 38 49 On Entrance 13 | 6 6 6 11 10 15 43 Naked Turns . | . . . . . . . Heaviest Build 420 | 11 11 16 203 209 420 230 Greatest Support 51 | 20 40 40 40 40 51 28 Greatest Overweight (x) 72 | . . . 5 5 72 8 Average Overweight (x) 5 | . . . 3 5 6 7 Largest Inventory Capacity 35 | . 8 8 35 35 35 35 Average Capacity 33 | . 8 8 32 35 34 34 Most Carried 35 | . 6 8 17 23 35 35 Average Carried 24 | . 4 6 13 19 30 33 Final Capacity 35 | 8 8 8 35 35 35 5 Final Carried 35 | 6 5 8 17 23 35 5 Class Distribution -------------------- 95% | Hauler-Mutant 4% | Mutant Dominant Class ---------------- Mutant | -10/Materials Mutant | -10/Mines Hauler-Mutant | -10/Exiles Hauler-Mutant | -9/Mines Hauler-Mutant | -8/Materials Hauler-Mutant | -7/Factory Resources | -11 -10 -10 -10 -9 -8 -7 ----------- Run | Yrd Mat Min Exi Min Mat Fac Matter Collected 3011 | 200 . 167 46 242 2071 285 Remotely . | . . . . . . . Salvage Created 2556 | . . 101 . 149 1884 422 Parts 142 | . . 5 . 14 102 21 Haulers Intercepted 3 | . . . . . 3 . Recyclers Shooed 7 | . . . . . 6 1 Parts Field Recycled . | . . . . . . . Retrieved Matter . | . . . . . . . Parts Self-Destructed . | . . . . . . . Prevented . | . . . . . . . Kills | -11 -10 -10 -10 -9 -8 -7 ------- Run | Yrd Mat Min Exi Min Mat Fac Combat Hostiles Destroyed 50 | . . 3 . 6 35 6 Guns 28 | . . 3 . 6 15 4 Cannons 20 | . . . . . 18 2 AOE 1 | . . . . . 1 . Classes Destroyed 17 | . . 2 . 2 11 2 Worker 3 | . . . . . 3 . Builder 3 | . . . . . 2 1 Tunneler 2 | . . . . 1 1 . Hauler 3 | . . . . . 3 . Recycler 9 | . . . . . 7 2 Mechanic 1 | . . . . . 1 . Watcher 6 | . . . . . 5 1 Swarmer 11 | . . . . 3 8 . Grunt 17 | . . 2 . 3 12 . Brawler 2 | . . . . . 2 . Duelist 2 | . . . . . 2 . Sentry 9 | . . . . . 8 1 Demolisher 1 | . . 1 . . . . Specialist 2 | . . . . . 2 . Hunter 1 | . . . . . . 1 Programmer 4 | . . . . . . 4 Heavy 1 | . . . . . 1 . Best Kill Streak 6 | . . 2 . 3 6 4 Combat Bots Only 4 | . . 2 . 3 4 3 Max Kills in Single Turn 2 | . . 1 . 2 2 1 Gunslinging 1 | . . . . 1 . . Exploded 1 | . . . . . 1 . Melee . | . . . . . . . Uniques/NPCs Destroyed . | . . . . . . . Combat | -11 -10 -10 -10 -9 -8 -7 -------- Run | Yrd Mat Min Exi Min Mat Fac Hostile Shots Fired 675 | . . 8 . 29 308 330 Missed 197 | . . 2 . 14 84 97 Damage Taken 6929 | . . 140 . 147 3308 3334 Core 1030 | . . 22 . 20 383 605 Absorbed by Shields 538 | . . . . . 236 302 Redirected to Shielding 3 | . . . . . 3 . Regen/Repaired (Parts) 906 | . . . . . 906 . Core Remaining (%) 71 | 100 . . . 83 30 . Volleys Fired 226 | . . 6 . 8 165 47 Largest 2 | . . 2 . 2 2 2 Hottest 92 | . . 53 . 90 88 92 Shots Fired 403 | . . 12 . 21 288 82 Gun 213 | . . 12 . 21 132 48 Cannon 186 | . . . . . 152 34 Launcher 4 | . . . . . 4 . Special . | . . . . . . . Kinetic 349 | . . 12 . . 255 82 Thermal 50 | . . . . 21 29 . Explosive 4 | . . . . . 4 . Electromagnetic . | . . . . . . . Robot Hit Streak 15 | . . 8 . 15 11 14 Robot Miss Streak 6 | . . 1 . 3 6 2 Penetration Max . | . . . . . . . Secondary Targets 3 | . . . . 1 1 1 Max Gunslinging Chain 1 | . . . . 1 1 1 Shots Hit Robots 280 | . . 10 . 15 188 67 Core Hits 144 | . . 6 . 10 98 30 Critical Kills . | . . . . . . . Critical Parts Destroyed 1 | . . . . . 1 . Critical Strikes 14 | . . . . 1 12 1 Burn 5 | . . . . 1 4 . Destroy 1 | . . . . . 1 . Blast 8 | . . . . . 7 1 Melee Attacks 9 | . . . . . 6 3 Impact . | . . . . . . . Slashing 9 | . . . . . 6 3 Piercing . | . . . . . . . Sneak Attacks . | . . . . . . . Combat Hostiles . | . . . . . . . Follow-up Attacks . | . . . . . . . Damage Inflicted 5603 | . . 136 . 171 3983 1313 Guns 2501 | . . 136 . 164 1543 658 Cannons 2987 | . . . . . 2332 655 Explosions 106 | . . . . . 106 . Melee . | . . . . . . . Ramming 9 | . . . . 7 2 . Kinetic 5046 | . . 136 . . 3597 1313 Thermal 442 | . . . . 164 278 . Explosive 106 | . . . . . 106 . Electromagnetic . | . . . . . . . Impact . | . . . . . . . Slashing . | . . . . . . . Piercing . | . . . . . . . Highest Corruption 4 | . 4 4 4 4 3 1 Average Corruption 3 | . 3 4 4 4 3 1 Corruption Purged . | . . . . . . . Corruption Blocked . | . . . . . . . Effects 197 | . 1 8 23 104 61 . Message Errors 65 | . . 4 7 37 17 . Matter Fused 41 | . 1 2 3 24 11 . Heat Flow Errors 20 | . . . 3 9 8 . Energy Discharges 20 | . . 1 . 7 12 . Parts Rejected 1 | . . . . 1 . . Parts Fused 2 | . . . 1 1 . . Data Loss (minor) 29 | . . . 8 13 8 . Data Loss (major) 5 | . . 1 . 4 . . Misfires 8 | . . . . 6 2 . Alerts 4 | . . . 1 2 1 . Weapon Failures 2 | . . . . . 2 . Overload Shots . | . . . . . . . Overflow Damage 11 | . . . . . 11 . Projectiles 11 | . . . . . 11 . Explosions . | . . . . . . . Melee . | . . . . . . . Knockbacks 32 | . . . . . 19 13 Impact . | . . . . . . . Kinetic 29 | . . . . . 18 11 Secondary 3 | . . . . . 1 2 Self-Inflicted Damage . | . . . . . . . Shots . | . . . . . . . Rammed 2 | . . . . 1 1 . Targets Rammed 3 | . . . . 2 1 . Kicked . | . . . . . . . Crushed 1 | . . . . 1 . . Highest Temperature 271 | . . 19 271 271 263 26 Average Temperature 67 | . . 8 122 84 60 6 Received Heat Transfer 1379 | . . 30 . 36 1248 65 Siege Activations . | . . . . . . . Robots Corrupted . | . . . . . . . Combat Hostiles . | . . . . . . . Parts Fried . | . . . . . . . Impact Corruptions . | . . . . . . . Robots Melted 1 | . . . . . 1 . Combat Hostiles 1 | . . . . . 1 . Parts Melted 2 | . . . . 1 1 . Heat Transferred 1618 | . . . . 508 1110 . Parts Sabotaged . | . . . . . . . Parts Stolen . | . . . . . . . Parts Stripped . | . . . . . . . Power Chain Reactions . | . . . . . . . Alert | -11 -10 -10 -10 -9 -8 -7 ------- Run | Yrd Mat Min Exi Min Mat Fac Peak Influence 647 | . 30 91 . 77 647 328 Initial 249 | . . 11 . . 23 249 Average 180 | . 22 29 . 19 308 145 Maximum Alert Level 2 | . . . . . 2 1 Low Security (%) 66 | . 100 100 . 100 41 66 Level 1 9 | . . . . . 13 33 Level 2 23 | . . . . . 44 . Level 3 . | . . . . . . . Level 4 . | . . . . . . . Level 5 . | . . . . . . . High Security . | . . . . . . . Max Security . | . . . . . . . Squads Dispatched 12 | . 1 . . . 6 5 Investigation 2 | . 1 . . . 1 . Extermination 1 | . . . . . . 1 Reinforcement 3 | . . . . . 2 1 Assault . | . . . . . . . Garrison 6 | . . . . . 3 3 Intercept . | . . . . . . . Searches Triggered . | . . . . . . . Construction Impeded 1 | . . . . . . 1 Haulers Reinforced . | . . . . . . . Active Scanning Responses . | . . . . . . . Cargo Convoy Interrupts 1 | . . . . . . 1 Stealth | -11 -10 -10 -10 -9 -8 -7 --------- Run | Yrd Mat Min Exi Min Mat Fac Distress Signals 4 | . . . . . 4 . Communications Jammed . | . . . . . . . Distress Signals . | . . . . . . . Times Spotted 90 | . . 3 . 9 60 18 Peak Tracking Total 12 | . . 2 . 3 6 12 Tactical Retreats 3 | . . . . . 3 . Traps | -11 -10 -10 -10 -9 -8 -7 ------- Run | Yrd Mat Min Exi Min Mat Fac Traps Triggered 3 | . 2 . . . 1 . Indirectly . | . . . . . . . Trap Hack Attempts . | . . . . . . . Triggered . | . . . . . . . Disarmed . | . . . . . . . Reprogrammed . | . . . . . . . Reused . | . . . . . . . Traps Extracted . | . . . . . . . Installed . | . . . . . . . Triggered . | . . . . . . . Machines | -11 -10 -10 -10 -9 -8 -7 ---------- Run | Yrd Mat Min Exi Min Mat Fac Machines Disabled 1 | . . . . . 1 . Max in Single Turn 1 | . . . . . 1 . Garrison Access 1 | . . . . . 1 . Machines Repaired . | . . . . . . . Machines Dismantled . | . . . . . . . Machines Sabotaged . | . . . . . . . Overloaded Fab Kills . | . . . . . . . Hacking | -11 -10 -10 -10 -9 -8 -7 --------- Run | Yrd Mat Min Exi Min Mat Fac Machines Accessed 23 | . 1 . 2 1 16 3 Terminals 12 | . . . . . 11 1 Fabricators . | . . . . . . . Repair Stations 2 | . . . . . 2 . Recycling Units 4 | . 1 . . . 2 1 Scanalyzers . | . . . . . . . Garrison Access 2 | . . . . . 1 1 Total Hacks 66 | . 2 . 5 1 51 7 Successful 43 | . 2 . 5 1 34 1 Failed 23 | . . . . . 17 6 Catastrophic . | . . . . . . . Database Lockouts . | . . . . . . . Manual 44 | . 1 . 1 . 37 5 Terminals 36 | . . . . . 33 3 Fabricators . | . . . . . . . Repair Stations 10 | . . . . . 10 . Recycling Units 11 | . 2 . . . 7 2 Scanalyzers . | . . . . . . . Garrison Access 3 | . . . . . 1 2 Terminal Hacks 8 | . . . 5 1 2 . Record 4 | . . . 4 . . . Open Door 1 | . . . . 1 . . Alert Level 1 | . . . . . 1 . Unreport Threat 1 | . . . . . 1 . Derelict Proto ID Bank 1 | . . . 1 . . . Fabricator Hacks . | . . . . . . . Repair Station Hacks 8 | . . . . . 8 . Scan Component 5 | . . . . . 5 . Repair 3 | . . . . . 3 . Recycling Unit Hacks 2 | . 1 . . . 1 . Report Inventory 1 | . 1 . . . . . Retrieve Components 1 | . . . . . 1 . Scanalyzer . | . . . . . . . Garrison Access Hacks 1 | . . . . . 1 . Seal Access 1 | . . . . . 1 . Unauthorized Hacks 24 | . 1 . . . 22 1 Terminals 20 | . . . . . 19 1 Assimilate 9 | . . . . . 9 . Botnet 10 | . . . . . 9 1 Operators 1 | . . . . . 1 . Fabricators . | . . . . . . . Repair Stations . | . . . . . . . Recycling Units 4 | . 1 . . . 3 . Reject 2 | . . . . . 2 . Mask 1 | . . . . . 1 . Tunnel 1 | . 1 . . . . . Scanalyzers . | . . . . . . . Garrison Access . | . . . . . . . Data Cores Recovered . | . . . . . . . Used . | . . . . . . . Hacking Detections 18 | . 1 . . . 14 3 Full Trace Events 1 | . . . . . 1 . Feedback Events . | . . . . . . . Feedback Blocked . | . . . . . . . Robot Schematics Acquired . | . . . . . . . Robots Built . | . . . . . . . Authchips . | . . . . . . . Time . | . . . . . . . Total Robot Build Rating . | . . . . . . . Part Schematics Acquired . | . . . . . . . Parts Built . | . . . . . . . Authchips . | . . . . . . . Time . | . . . . . . . Total Part Build Rating . | . . . . . . . Parts Repaired 3 | . . . . . 3 . Time 90 | . . . . . 90 . Parts Recycled . | . . . . . . . Recycled Matter . | . . . . . . . Retrieved Matter . | . . . . . . . Retrieved Components 4 | . . . . . 4 . Parts Scanalyzed . | . . . . . . . Part Schematics Acquired . | . . . . . . . Parts Damaged . | . . . . . . . Bothacking | -11 -10 -10 -10 -9 -8 -7 ------------ Run | Yrd Mat Min Exi Min Mat Fac Used RIF Installer . | . . . . . . . Robots Hacked . | . . . . . . . Non-combat . | . . . . . . . Combat . | . . . . . . . Robot Hacks Applied . | . . . . . . . Relay Couplers Released . | . . . . . . . Fabnet Peak Effective % . | . . . . . . . Robots Rewired . | . . . . . . . Allies Hacked 1 | . . . . . . 1 Hacks Repelled . | . . . . . . . Allies | -11 -10 -10 -10 -9 -8 -7 -------- Run | Yrd Mat Min Exi Min Mat Fac Total Allies 4 | . . . . 3 1 . Largest Group 3 | . . . . 3 1 1 Highest-Rated Group 40 | . . . . 40 10 10 Highest-Rated Ally 16 | . . . . 16 10 10 Total Orders 2 | . . . . . 2 . EXPLORE 2 | . . . . . 2 . Ally Attacks 47 | . . . . 47 . . Total Damage 423 | . . . . 423 . . Kills 4 | . . . . 4 . . Allies Corrupted . | . . . . . . . Allies Melted . | . . . . . . . Intel | -11 -10 -10 -10 -9 -8 -7 ------- Run | Yrd Mat Min Exi Min Mat Fac Robot Analysis Total . | . . . . . . . Derelict Logs Recovered 2 | . . . . 2 . . Drone Launches 2 | . . . . . 2 . Drone Recoveries . | . . . . . . . Exploration | -11 -10 -10 -10 -9 -8 -7 ------------- Run | Yrd Mat Min Exi Min Mat Fac Turns Passed 14885 | . 72 461 1597 4683 6870 1202 Spaces Moved 3247 | 1 43 260 339 826 1326 452 Core 1 | . . . . . 1 . Treads 2267 | . 43 260 339 826 799 . Legs 1 | 1 . . . . . . Wheels 978 | . . . . . 526 452 Hover . | . . . . . . . Flight . | . . . . . . . Fastest Speed 100 | 120 160 160 160 560 100 100 Average Speed 415 | 120 160 160 469 560 436 219 Slowest Speed 3650 | 120 160 160 560 560 3650 220 Overloaded Moves . | . . . . . . . Propulsion Burnouts . | . . . . . . . Robots Hopped . | . . . . . . . Cave-ins Triggered . | . . . . . . . Exploration Rate (%) 48 | 1 17 46 69 98 95 13 Regions Visited 6 Branch Regions 3 Pre-discovered Areas 3 | . 1 . 1 1 . . Known Exits Taken 1 | . . . . . 1 . Unknown Exits Taken 5 | 1 1 1 1 1 . . Scrap Searched 2 | . . 1 . 1 . . Spaces Dug 13 | . . . . . 10 3 Terrain Destroyed 60 | . . . . . 54 6 Melee 9 | . . . . . 6 3 Projectile 33 | . . . . . 30 3 AOE 18 | . . . . . 18 . Terrain Rammed . | . . . . . . . Walls Destroyed . | . . . . . . . Machines Disabled . | . . . . . . . Actions | -11 -10 -10 -10 -9 -8 -7 --------- Run | Yrd Mat Min Exi Min Mat Fac Total 4246 | . 47 294 352 864 2114 575 Wait 439 | . . 20 . 16 369 34 Move 3241 | . 42 259 338 825 1325 452 Hop . | . . . . . . . Pick Up 113 | . 1 3 8 8 85 8 Fast Attach 39 | . . 3 1 . 32 3 Attach 43 | . 2 . . 4 27 10 Detach 19 | . . 1 1 1 15 1 Swap 31 | . . . . . 23 8 Drop 83 | . 2 2 4 . 66 9 Fire 226 | . . 6 . 8 165 47 Melee 9 | . . . . . 6 3 Ram . | . . . . . . . Kick . | . . . . . . . Crush 3 | . . . . 2 1 . Escape Stasis . | . . . . . . . Rewire . | . . . . . . . Trap . | . . . . . . . Miscellaneous . | . . . . . . . Route ------- -11/Scrapyard -10/Materials -10/Mines (discovered 2 exits: [*Mat] / *Exi) -10/Exiles -9/Mines (discovered 2 exits: *Mat x2) -8/Materials (discovered 3 exits: *Fac x3) -7/Factory (discovered 2 exits: [*Fac] / [*Sto]) History --------- Turn | Location | Event 1 | -11/Scrapyard | Discovered new exit (range 0) 1 | -11/Scrapyard | Entered Materials 42 | -10/Materials | Discovered new exit (range 16) 73 | -10/Materials | Entered Mines 84 | -10/Mines | Assembled infested the area 86 | -10/Mines | Discovered new exit (range 3) 115 | -10/Mines | A weapon hastily lodged in a ceiling crevice suddenly fell to the ground 302 | -10/Mines | Build established: Mutant 527 | -10/Mines | Deemed a non-threat by the Exiles lab entrance 527 | -10/Mines | Discovered new exit (range 5) 534 | -10/Mines | Entered Exiles 574 | -10/Exiles | Met 8R-AWN 602 | -10/Exiles | Met EX-HEX 848 | -10/Exiles | Met EX-DEC 947 | -10/Exiles | Build established: Hauler-Mutant 1178 | -10/Exiles | Learned location of Zion (-6) 1307 | -10/Exiles | Met EX-BIN 1385 | -10/Exiles | Aligned with FarCom system 1391 | -10/Exiles | Given EX-Vault access code 1520 | -10/Exiles | Opened EX-Vault 1559 | -10/Exiles | Found Flying Fortress v7 1683 | -10/Exiles | Warned to stay clear of 0b10 Research branches 2086 | -10/Exiles | Discovered new exit (range 10) 2131 | -10/Exiles | Left Exiles lab with Flying Fortress v7 2131 | -10/Exiles | Entered Mines 2445 | -9/Mines | Learned 8 Materials zone layouts 2563 | -9/Mines | Assisted by bots powering up and referring to "LRC-V3" 3471 | -9/Mines | Found the Drone Emporium 3498 | -9/Mines | Found Prototype Device 4591 | -9/Mines | Discovered new exit (range 4) 4874 | -9/Mines | Found a damaged Exp. Sensor Array with a note attached 4886 | -9/Mines | Found Prototype Device 5262 | -9/Mines | Discovered new exit (range 5) 5338 | -9/Mines | YI-UF0 nonchalantly dropped a Grenade Launcher on the ground 5351 | -9/Mines | Learned Materials emergency access door positions 6814 | -9/Mines | Entered Materials 6814 | -8/Materials | Evolved 4 slots: Utility x4 6815 | -8/Materials | Identified exit to Factory 6895 | -8/Materials | Identified Decoy Drone Bay 6896 | -8/Materials | Identified Exp. Sensor Array 7056 | -8/Materials | Garrison activated, responded to threat 10591 | -8/Materials | Core integrity fell below 50% 10676 | -8/Materials | Lost 4 parts (1n2u1w) 11457 | -8/Materials | Discovered exit to Factory (range 11) 12836 | -8/Materials | Repaired Humpback 12959 | -8/Materials | Repaired Humpback 13033 | -8/Materials | Repaired Flak Cannon 13684 | -8/Materials | Entered Factory 13684 | -7/Factory | Accompanied by 1 ally 13684 | -7/Factory | Evolved 2 slots: Utility x2 14369 | -7/Factory | Discovered new exit (range 12) 14415 | -7/Factory | Discovered new exit (range 8) 14479 | -7/Factory | Garrison activated, responded to threat 14782 | -7/Factory | Cargo convoy interrupted 14866 | -7/Factory | Core integrity fell below 50% 14885 | -7/Factory | Core integrity fell below 20% 14886 | -7/Factory | Self-destructed Last Messages --------------- 14876_ U-05 Engineer builds a Wall. 14876_ Penetrated by Slug. 14876_ Adv. Targeting Computer destroyed. 14877_ Slug penetrates Wall. 14877_ K-01 Serf collects debris. 14879_ Penetrated by Slug. 14879_ Slug penetrates Wall. 14880_ Penetrated by Slug. 14881_ K-01 Serf collects debris. 14882_ R-06 Scavenger collects Adv. Targeting Computer. 14882_ R-06 Scavenger collects Cooling System. 14882_ Penetrated by Slug. 14882_ U-05 Engineer builds a Wall. 14884_ Penetrated by Slug. 14884_ K-01 Serf collects debris. 14885_ R-06 Scavenger collects Imp. Assault Rifle. 14885_ Penetrated by Slug. 14885_ U-05 Engineer destroyed. 14885_ Mni. Assault Cannon destroyed. 14886_ R-06 Scavenger collects Wheel. Map ----- +----------------------------------------------------+ | ??????????????????????????? ???????????????????? | | ??????????????????????????? ???????????????????? | | ????????????????????? ? ???????????????????? | | ?????????????????? ? #??????????????????? | | ???????????????? #??????????????????? | | ?????????????? #??????????????????? | | ???????????? " #??????????????????? | | ???????????? " #??????????????????? | | ??????????? """ #??????????????????? | | ??????????? """ #??????????????????? | | ?????????? " +??????????????????? | | ??????????# ""%""""%"#??????????????????? | | ??????????# " """" #??????????????????? | | ??????????# """ #??????????????????? | | ?????????## %"% #??????????????????? | | ???????? #??????????????????? | | ???????? #################### | | ???????? | | ???????? ################ | | ???????? #?#######??????# | | ?????????## ######## # #??????# | | ??????????# # =%!!h# # #??????# | | ??????????# + """h%r% " #??????# | | ??????????# ###??#r"" %x#### #########???####+ | | ??????????# i ?????#h !%k##?# #???????????# | | ??????????? ?????#h==@!%!###g###???#######"" | | ??????????? #????#|!%!!!## g ##### #"" | | ??????????? #????######### g ^^ !#""" | | ????####### #??????#!! ??#] ^^ < #""" | | ????? #??????#!!#??# ^^ #""" | | ??? ! #??????#!##??# #####% # | | ?"" """ ####################???## ## | | ?"" """ """ # """ # #?????# ##]* | | ??" """ / """ # """" "T" # //]#?????# ## | | ?? """ # """" # /] #?????# !]## | | ??" """ # """" !=! # /] #????## =%## | | ?"" """ """ # """" [ # ###??#= =]!##### | | """ """ """ # ! [[# [ + #??# | | """ + """" [[#= # #??# < | | """ """ # """" + # #??# * ! | | """ """ # """" # # #??# ## %* | | """ """ ###+#### """" ###### #??######## = | | # ## #???# ########### | | """ """ # "" ## ##???# | | """ """ ^# "" ########+######????####### ##### | | """ """ + """ #??????# #???????????????# #??###+# | | # """ #??????# ################# #??# | | " """ #?????## #??# "" | | #####"#### #######% ] #??# "" | | # = *# = + #??# "" | +----------------------------------------------------+ Best States ------------- Heat Dissipation 58 Energy Generation 18 Energy Capacity 290 Matter Stores 300 Matter Capacity 300 Sight Range 16 Terrain Scan Density 10 ECM Strength 1 Additional Mass Support 9 Armor Coverage 600 Resistance: EM 15 Core Shielding 20 Evasion (%) 40 Targeting Accuracy 32 Armor Integrity Analysis 30 Recoil Reduction 2 Item Schematics ----------------- None Robot Schematics ------------------ None Fabricated ------------ Nothing Alien Tech Used ----------------- None Achievements -------------- None Challenges ------------ None Game ------ Seed BombardmentAngularBoregun Manual? 0 Play Time 00:56:57 Cumulative 115.2 hours Start 2024.11.18 @ 23:06:43 End 2024.11.19 @ 00:26:08 Sessions 5 Manual Loads 0 Difficulty Rogue Special Mode None Game No. 212 Rogue 212 Adventurer 0 Explorer 0 Win Type - Total 0 Types 0/0/0/0/0/0/0/0/0 Lore% 42 Gallery% 40 Achievement% 35 Wizard Run 0 Options --------- Layout 0 ASCII 0 Keyboard 0 Movement Mouse Keybinds 0 Fullscreen 1 Font 24/Smallcaps Map View 91x25 Zoom Use 86% Tactical HUD 1 Map Filters NONE Filters NONE Steam 1 RUN: 1c3457c6-e093-4718-8714-364d8e854f4d